Workbook

Sheet PFP
A6: PROPOSTA FINANCEIRA DO PROJETO | J6: CODIGO:
J7: PFP
A8: NOME DA CONSULTORA: | J8: Data: | K8: =TODAY() -> 2025-01-06
A10: PROJETO: | F10: CONTRATANTE:
A11: CONTRATAÇÃO DE EMPRESA PARA ESTUDO E ELABORAÇÃO DE PROJETO BÁSICO DE CONTENÇÃO E ESTABILIDADE DO DIQUE DE PROTEÇÃO NO PERÍMETRO IRRIGADO ITIÚBA | F11: CODEVASF 5ªSR
A12: Base | B12: Cod1 | C12: Cod2 | D12: Categoria / Insumo | E12: Uni | F12: Qde | G12: CUD | H12: PU | I12: FatorK | J12: CT | K12: PT
A13: DNIT | B13: P8061 | C13: C | D13: Engenheiro Coordenados | E13: mês | F13: ='CRO-1 - INSUMO ETAPA.PRODUTO'!D10 -> 0.69 | G13: =VLOOKUP(B13,'Tabela Consultiva Julho 2024'!$B$4:$Z$101,4,0) -> 18189.93 | H13: =ROUND(I13*G13,2) -> 30837.39 | I13: =PFP2.2_FatorKb!$E$39 -> 1.6953 | J13: =ROUND(F13*G13,2) -> 12551.05 | K13: =ROUND(F13*H13,2) -> 21277.8
A14: DNIT | B14: P8067 | C14: P0 | D14: Engenheiro de projetos senior | E14: mês | F14: ='CRO-1 - INSUMO ETAPA.PRODUTO'!D11 -> 0.7 | G14: =VLOOKUP(B14,'Tabela Consultiva Julho 2024'!$B$4:$Z$101,4,0) -> 15877.29 | H14: =ROUND(I14*G14,2) -> 26916.77 | I14: =PFP2.2_FatorKb!$E$39 -> 1.6953 | J14: =ROUND(F14*G14,2) -> 11114.1 | K14: 18841.74
A15: DNIT | B15: P8066 | C15: P1 | D15: Engenheiro de projetos pleno (CUD = salário + encargos complementares) | E15: mês | F15: ='CRO-1 - INSUMO ETAPA.PRODUTO'!D12 -> 0.94 | G15: =VLOOKUP(B15,'Tabela Consultiva Julho 2024'!$B$4:$Z$102,4,0)+VLOOKUP(B15,'Tabela Consultiva Julho 2024'!$B$4:$Z$102,8,0)+VLOOKUP(B15,'Tabela Consultiva Julho 2024'!$B$4:$Z$102,10,0)+VLOOKUP(B15,'Tabela Consultiva Julho 2024'!$B$4:$Z$102,14,0)+VLOOKUP(B15,'Tabela Consultiva Julho 2024'!$B$4:$Z$102,16,0) -> 13395.84 | H15: =ROUND(I15*G15,2) -> 31158.72 | I15: =PFP2.1_FatorKa!$F$39 -> 2.326 | J15: 12592.09 | K15: 29289.2
A17: DNIT | B17: P8057 | C17: P3 | D17: Engenheiro ambiental júnior (CUD = salário + encargos complementares) | E17: mês | F17: ='CRO-1 - INSUMO ETAPA.PRODUTO'!D14 -> 0.55 | G17: =VLOOKUP(B17,'Tabela Consultiva Julho 2024'!$B$4:$Z$102,4,0)+VLOOKUP(B17,'Tabela Consultiva Julho 2024'!$B$4:$Z$102,8,0)+VLOOKUP(B17,'Tabela Consultiva Julho 2024'!$B$4:$Z$102,10,0)+VLOOKUP(B17,'Tabela Consultiva Julho 2024'!$B$4:$Z$102,14,0)+VLOOKUP(B17,'Tabela Consultiva Julho 2024'!$B$4:$Z$102,16,0) -> 12768.6 | H17: 29699.76 | I17: =PFP2.1_FatorKa!$F$39 -> 2.326 | J17: 7022.73 | K17: 16334.87
A18: DNIT | B18: P8098 | C18: T3 | D18: Laboratorista | E18: mês | F18: ='CRO-1 - INSUMO ETAPA.PRODUTO'!D15 -> 1 | G18: =VLOOKUP(B18,'Tabela Consultiva Julho 2024'!$B$4:$Z$102,4,0)+VLOOKUP(B18,'Tabela Consultiva Julho 2024'!$B$4:$Z$102,8,0)+VLOOKUP(B18,'Tabela Consultiva Julho 2024'!$B$4:$Z$102,10,0)+VLOOKUP(B18,'Tabela Consultiva Julho 2024'!$B$4:$Z$102,14,0)+VLOOKUP(B18,'Tabela Consultiva Julho 2024'!$B$4:$Z$102,16,0) -> 3185.91 | H18: 7410.43 | I18: =PFP2.1_FatorKa!$F$39 -> 2.326 | J18: 3185.91 | K18: 7410.43
A19: DNIT | B19: P8027 | C19: T2 | D19: Auxiliar de laboratorio | E19: mês | F19: ='CRO-1 - INSUMO ETAPA.PRODUTO'!D16 -> 1 | G19: =VLOOKUP(B19,'Tabela Consultiva Julho 2024'!$B$4:$Z$102,4,0)+VLOOKUP(B19,'Tabela Consultiva Julho 2024'!$B$4:$Z$102,8,0)+VLOOKUP(B19,'Tabela Consultiva Julho 2024'!$B$4:$Z$102,10,0)+VLOOKUP(B19,'Tabela Consultiva Julho 2024'!$B$4:$Z$102,14,0)+VLOOKUP(B19,'Tabela Consultiva Julho 2024'!$B$4:$Z$102,16,0) -> 2638.99 | H19: 6138.29 | I19: =PFP2.1_FatorKa!$F$39 -> 2.326 | J19: 2638.99 | K19: 6138.29
A20: DNIT | B20: P8163 | C20: T3 | D20: Topógrafo | E20: mês | F20: ='CRO-1 - INSUMO ETAPA.PRODUTO'!D17 -> 1 | G20: =VLOOKUP(B20,'Tabela Consultiva Julho 2024'!$B$4:$Z$102,4,0)+VLOOKUP(B20,'Tabela Consultiva Julho 2024'!$B$4:$Z$102,8,0)+VLOOKUP(B20,'Tabela Consultiva Julho 2024'!$B$4:$Z$102,10,0)+VLOOKUP(B20,'Tabela Consultiva Julho 2024'!$B$4:$Z$102,14,0)+VLOOKUP(B20,'Tabela Consultiva Julho 2024'!$B$4:$Z$102,16,0) -> 3271.62 | H20: 7609.79 | I20: =PFP2.1_FatorKa!$F$39 -> 2.326 | J20: 3271.62 | K20: 7609.79
A21: DNIT | B21: P8027 | C21: T4 | D21: Auxiliar de topografo | E21: mês | F21: ='CRO-1 - INSUMO ETAPA.PRODUTO'!D18 -> 1 | G21: =VLOOKUP(B21,'Tabela Consultiva Julho 2024'!$B$4:$Z$102,4,0)+VLOOKUP(B21,'Tabela Consultiva Julho 2024'!$B$4:$Z$102,8,0)+VLOOKUP(B21,'Tabela Consultiva Julho 2024'!$B$4:$Z$102,10,0)+VLOOKUP(B21,'Tabela Consultiva Julho 2024'!$B$4:$Z$102,14,0)+VLOOKUP(B21,'Tabela Consultiva Julho 2024'!$B$4:$Z$102,16,0) -> 2638.99 | H21: =ROUND(I21*G21,2) -> 6138.29 | I21: =PFP2.1_FatorKa!$F$39 -> 2.326 | J21: 2638.99 | K21: 6138.29
A22: DNIT | B22: P8038 | C22: T2 | D22: Chefe de escritório (CUD = salário + encargos complementares) | E22: mês | F22: ='CRO-1 - INSUMO ETAPA.PRODUTO'!D19 -> 1 | G22: =VLOOKUP(B22,'Tabela Consultiva Julho 2024'!$B$4:$Z$102,4,0)+VLOOKUP(B22,'Tabela Consultiva Julho 2024'!$B$4:$Z$102,8,0)+VLOOKUP(B22,'Tabela Consultiva Julho 2024'!$B$4:$Z$102,10,0)+VLOOKUP(B22,'Tabela Consultiva Julho 2024'!$B$4:$Z$102,14,0)+VLOOKUP(B22,'Tabela Consultiva Julho 2024'!$B$4:$Z$102,16,0) -> 4096.08 | H22: 9527.48 | I22: =PFP2.1_FatorKa!$F$39 -> 2.326 | J22: 4096.08 | K22: 9527.48
A23: DNIT | B23: P8026 | C23: T3 | D23: Auxiliar administrativo (CUD = salário + encargos complementares) | E23: mês | F23: ='CRO-1 - INSUMO ETAPA.PRODUTO'!D20 -> 1 | G23: =VLOOKUP(B23,'Tabela Consultiva Julho 2024'!$B$4:$Z$102,4,0)+VLOOKUP(B23,'Tabela Consultiva Julho 2024'!$B$4:$Z$102,8,0)+VLOOKUP(B23,'Tabela Consultiva Julho 2024'!$B$4:$Z$102,10,0)+VLOOKUP(B23,'Tabela Consultiva Julho 2024'!$B$4:$Z$102,14,0)+VLOOKUP(B23,'Tabela Consultiva Julho 2024'!$B$4:$Z$102,16,0) -> 2726.98 | H23: 6342.96 | I23: =PFP2.1_FatorKa!$F$39 -> 2.326 | J23: 2726.98 | K23: 6342.96
A24: CODE | B24: DP | C24: V1 | D24: Diárias | E24: dia | F24: ='CRO-1 - INSUMO ETAPA.PRODUTO'!D21 -> 5 | G24: 353.39 | H24: 443.79 | I24: =PFP2.3_FatorKc!$E$20 -> 1.2558 | J24: 1766.95 | K24: 2218.95
A25: CODE | B25: B2 | C25: V3 | D25: Fornecimento de veículo leve 1.0 ou superior, com ar-condicionado, incluindo despasas com combustível, óleos, conservação e manutenção. | E25: dias | F25: ='CRO-1 - INSUMO ETAPA.PRODUTO'!D22 -> 5 | G25: ='CPU VEICULO_Pequeno'!D8 -> 156.0421044 | H25: 195.96 | I25: =PFP2.3_FatorKc!$E$20 -> 1.2558 | J25: =ROUND(F25*G25,2) -> 780.21 | K25: 979.8
A26: CODE | B26: SU | C26: TP | D26: Total Serviços Topografia | E26: un | F26: ='CRO-1 - INSUMO ETAPA.PRODUTO'!D23 -> 1 | G26: - | H26: =PFP1.1_Topo!G19 -> 19251.87 | I26: - | J26: - | K26: 19251.87
A27: CODE | B27: SU | C27: GT | D27: Total Serviços Geotécnicos | E27: un | F27: ='CRO-1 - INSUMO ETAPA.PRODUTO'!D24 -> 1 | G27: - | H27: =PFP1.2_Geo!G27 -> 102394.6 | I27: - | J27: - | K27: 102394.6
A28: TOTAL DOS CUSTOS DIRETOS | H28: =ROUND(SUM(J13:J27),2) -> 64385.7
A29: TOTAL DA PROPOSTA A PREÇO GLOBAL | H29: =ROUND(SUM(K13:K25),2) -> 132109.6
A30: TOTAL DOS ENCARGOS E DISPESAS DIVERSAS | H30: =ROUND(H29-H28,2) -> 67723.9
A31: TOTAL DA PROPOSTA A PREÇO UNITÁRIO | H31: =ROUND(SUM(K26+K27),2) -> 121646.47
A32: TOTAL DA PROPOSTA | H32: =TRUNC(ROUND(H29+H31,2),2) -> 253756.07
A33: OBSERVAÇÃO:
A34: Alocar os Insumos MO, com respectivo FatorK, dentro da categoria de vínculo contratual (com ou sem) de cada tipo de profissional
A35: Uni - unidade de medição do insumo;
A36: Qde - Quantidade do Insumo (não pode ocorrer alteração pela Licitante)
A37: CUD - Custo Unitário Direto do Insumo (com encargos compementares, sem encargos, taxas e impostos, valor não pode ser maior que o Orçado pela Codevasf)
A38: CT - Custo Total (sem encargos, taxas e impostos) - CT = Qde x CUD
A39: FatorK - Taxa de Ressarcimento de Despesas e Encargos (detalhar composição nas Planilhas "PFP2.1", "PFP2.2", "PFP3")
A40: PU - Preço Unitário do Insumo (incluído encargos, taxas e impostos) - PU = CUD x FatorK
A41: PT - Preço Total do Insumo (incluído encargos, taxas e impostos) - PT = Qde x PU
A42: EC-E1- Encargos sociais complementares e adicionais: Os valores foram retirados da planilha de Eng consultiva do DNIT
A43: P - Profissionais nível superior nas áreas de Engenharia, Química, Arquitetura, Agronomia e Veterinária, conforme disposições da Lei 4.950-A/66
A44: S - Profissionais de nível superior nas demais áreas de atuação, incluindo Arqueólogo, Biólogo, Geógrafo e Socioólogo
A45: T - Profissionais de nível médio técnico nas diversas áreas de atuação
A46: A - Profissionais de nível médio de apoio técnico-administrativo

Sheet PFP1.1_Topo
A4: SERVIÇOS TOPOGRÁFICOS/CARTOGRÁFICOS | G4: CODIGO:
G5: PFP-1.1
A6: NOME DA EMPRESA:
A8: PROJETO: | E8: CONTRATANTE: | G8: BASE:
A9: =PFP!A11 -> CONTRATAÇÃO DE EMPRESA PARA ESTUDO E ELABORAÇÃO DE PROJETO BÁSICO DE CONTENÇÃO E ESTABILIDADE DO DIQUE DE PROTEÇÃO NO PERÍMETRO IRRIGADO ITIÚBA | E9: CODEVASF 5ªSR | G9: Orse setembro/2024
A10: Cod. | B10: Base | C10: Insumos | D10: Uni | E10: Qde | F10: Preço Unitário (PU)(R$) | G10: Preço Total (PT)
A12: 9346 | B12: ORSE | C12: Levantamento topográfico planimétrico cadastral | D12: m² | E12: =3000*10 -> 30000 | F12: 0.35 | G12: =ROUND(F12*E12,2) -> 10500
A13: 4314 | B13: ORSE | C13: Nivelamento e contranivelamento da poligonaL | D13: km | E13: 3 | F13: 307.69 | G13: =ROUND(F13*E13,2) -> 923.07
C14: Levantamento Topográfico Planimétrico de Perímetro com:
A15: TP16.1 | B15: CODE | C15: Poligonal Classe IIP | D15: km | E15: 3 | F15: 1660.46 | G15: 4981.38
A16: TP19 | B16: CODE | C16: Pontos GPS de dupla frequencia (L1/L2) | D16: un | E16: 3 | F16: 807.34 | G16: 2422.02
A17: 4707 | B17: ORSE | C17: Implantação de marco de concreto | D17: un | E17: 3 | F17: 73 | G17: 219
A18: 2549 | B18: ORSE | C18: Demarcação de lotes com piquetes/estacas de madeira seção 5x5cm, com altura de 50cm | D18: un | E18: 20 | F18: 10.32 | G18: 206.4
A19: TOTAL SERVIÇOS TOPOGRÁFICOS | G19: =SUM(G11:G18) -> 19251.87
A20: OBSERVAÇÃO:
A21: Uni - unidade de medição do insumo;
A22: Qde - Quantidade do Insumo (não pode ocorrer alteração pela Licitante)
A23: PU - Preço Unitário (composições padrão da Codevasf, já incluso o FatorK)
A24: PT - Preço Total (incluído encargos, taxas e impostos) - PT = Qde x PU

Sheet PFP1.2_Geo
A5: SERVIÇOS GEOLÓGICOS/GEOTÉCNICOS | G5: CODIGO:
G6: PFP-1.2
A7: NOME DA EMPRESA:
A9: PROJETO: | E9: CONTRATANTE: | G9: BASE:
A10: =PFP!A11 -> CONTRATAÇÃO DE EMPRESA PARA ESTUDO E ELABORAÇÃO DE PROJETO BÁSICO DE CONTENÇÃO E ESTABILIDADE DO DIQUE DE PROTEÇÃO NO PERÍMETRO IRRIGADO ITIÚBA | E10: CODEVASF (SEDE) | G10: COMPESA 07/2024 ORSE 09/2024 EMBASA 05/2024
A11: Cod. | B11: Base | C11: Insumos | D11: Und | E11: Qde | F11: Preço Unitário (PU) | G11: Preço Total (PT)
C13: SONDAGEM A PERCUSSÃO
A14: 01.02.02U | B14: COMPESA | C14: SONDAGEM A PERCUSSÃO SPT, INCLUSIVE LAUDO (PROFUNDIDADE MÍNIMA DE 8,00 M, POR FURO). | D14: m | E14: =C45 -> 1000 | F14: 90.13 | G14: =ROUND(F14*E14,2) -> 90130
A15: 32.05.04 | B15: EMBASA | C15: MOBILIZACAO E DESMOBILIZACAO DE EQUIPE E EQUIPAMENTOS (INTERIOR) PARA SONDAGEMA PERCUSSAO | D15: und | E15: 1 | F15: 1978.68 | G15: =ROUND(F15*E15,2) -> 1978.68
C17: ENSAIOS EM SOLOS
A18: 01.07.12U | B18: COMPESA 07/2024 | C18: Ensaio de densidade real - solos | D18: und | E18: 4 | F18: 57.16 | G18: =ROUND(F18*E18,2) -> 228.64
A19: 4683 | B19: ORSE | C19: Ensaio - Limite de liquidez | D19: und | E19: 4 | F19: 165 | G19: =ROUND(F19*E19,2) -> 660
A20: 4684 | B20: ORSE | C20: Ensaio - Limite de plasticidade | D20: und | E20: 4 | F20: 165 | G20: 660
A21: 4682 | B21: ORSE | C21: Ensaio - Granulometria por peneiramento | D21: und | E21: 4 | F21: 165 | G21: 660
A22: 01.07.07U | B22: COMPESA | C22: Ensaio de granulometria por peneiramento e sedimentação - solos | D22: und | E22: 4 | F22: 138.12 | G22: 552.48
A23: 34.01.25 | B23: EMBASA | C23: Ensaio compactação Proctor Normal (NBR 07182) | D23: und | E23: 4 | F23: 320 | G23: 1280
A24: 01.07.10U | B24: COMPESA | C24: Ensaio de massa específica - In Situ - método frsco de areia - solos | D24: und | E24: 4 | F24: 50.88 | G24: 203.52
A25: 34.01.72 | B25: EMBASA | C25: Ensaio de cisalhamento direto | D25: und | E25: 4 | F25: 1510.32 | G25: 6041.28
A27: TOTAL SERVIÇOS GEOTÉCNICOS | G27: =SUM(G12:G25) -> 102394.6
A28: LEGENDA:
A29: Uni - unidade de medição do insumo;
A30: Qde - Quantidade do Insumo (não pode ocorrer alteração pela Licitante)
A31: PU - Preço Unitário (composições padrão da Codevasf, já incluso o FatorK)
A32: PT - Preço Total (incluído encargos, taxas e impostos) - PT = Qde x PU
A35: MEMÓRIA DE CÁLCULO PARA SONDAGEM SPT:
B37: COMPRIMENTO TOTAL DO DIQUE A SER ESTUDADO: | C37: 3000 | E37: 01 FURO A CADA: | F37: 30
B39: QUANTIDADE DE FUROS: | C39: COMPRIMENTO TOTAL DO DIQUE A SER ESTUDADO / 30 m
C40: =C37/F37 -> 100
B42: PROFUNDIDADE MÉDIA DOS FUROS | C42: 10
B44: TOTAL DE SONDAGEM SPT ESTIMADA | C44: QUANTIDADE DE FUROS x PROFUNDIDADE MÉDIA DOS FUROS
C45: =C40*C42 -> 1000

Sheet PFP2.1_FatorKa
B4: DETALHAMENTO DOS ENCARGOS SOCIAIS: Ka | G4: CODIGO:
G5: PFP-2.1
B6: NOME DA CONSULTORA:
B8: PROJETO: | D8: CONTRATANTE: | G8: BASE:
B9: =PFP!A11 -> CONTRATAÇÃO DE EMPRESA PARA ESTUDO E ELABORAÇÃO DE PROJETO BÁSICO DE CONTENÇÃO E ESTABILIDADE DO DIQUE DE PROTEÇÃO NO PERÍMETRO IRRIGADO ITIÚBA | D9: =PFP!F11 -> CODEVASF 5ªSR | G9: SINAPI A APRTIR DE 12/2022
B10: Cod | C10: DESCRIÇÃO | F10: % | G10: R$
B11: A | C11: ENCARGOS SOCIAIS BÁSICOS | F11: =ROUND(SUM(F12:F20),4) -> 0.368 | G11: =ROUND(F11*SUMIF(PFP!$B$13:$B$27,"MO1",PFP!$J$13:$J$27),2) -> 0
B12: A1 | C12: INSS | F12: 0.2 | G12: =ROUND(F12*SUMIF(PFP!$B$13:$B$27,"MO1",PFP!$J$13:$J$27),2) -> 0
B13: A2 | C13: SESI | F13: 0.015 | G13: =ROUND(F13*SUMIF(PFP!$B$13:$B$27,"MO1",PFP!$J$13:$J$27),2) -> 0
B14: A3 | C14: SENAI | F14: 0.01 | G14: =ROUND(F14*SUMIF(PFP!$B$13:$B$27,"MO1",PFP!$J$13:$J$27),2) -> 0
B15: A4 | C15: INCRA | F15: 0.002 | G15: =ROUND(F15*SUMIF(PFP!$B$13:$B$27,"MO1",PFP!$J$13:$J$27),2) -> 0
B16: A5 | C16: SEBRAE | F16: 0.006 | G16: =ROUND(F16*SUMIF(PFP!$B$13:$B$27,"MO1",PFP!$J$13:$J$27),2) -> 0
B17: A6 | C17: Salário Educação | F17: 0.025 | G17: =ROUND(F17*SUMIF(PFP!$B$13:$B$27,"MO1",PFP!$J$13:$J$27),2) -> 0
B18: A7 | C18: Seguro Contra Acidentes de Trabalho | F18: 0.03 | G18: =ROUND(F18*SUMIF(PFP!$B$13:$B$27,"MO1",PFP!$J$13:$J$27),2) -> 0
B19: A8 | C19: FGTS | F19: 0.08 | G19: =ROUND(F19*SUMIF(PFP!$B$13:$B$27,"MO1",PFP!$J$13:$J$27),2) -> 0
B20: A9 | C20: SECONCI | G20: =ROUND(F20*SUMIF(PFP!$B$13:$B$27,"MO1",PFP!$J$13:$J$27),2) -> 0
B21: B | C21: ENCARGOS SOCIAIS QUE RECEBEM INCIDÊNCIA DE "A" | F21: =ROUND(SUM(F22:F28),4) -> 0.1811 | G21: =ROUND(F21*SUMIF(PFP!$B$13:$B$27,"MO1",PFP!$J$13:$J$27),2) -> 0
B22: B3 | C22: Auxílio Enfermidade | F22: 0.0066 | G22: =ROUND(F22*SUMIF(PFP!$B$13:$B$27,"MO1",PFP!$J$13:$J$27),2) -> 0
B23: B4 | C23: 13º Salário | F23: 0.0833 | G23: =ROUND(F23*SUMIF(PFP!$B$13:$B$27,"MO1",PFP!$J$13:$J$27),2) -> 0
B24: B5 | C24: Licença Paternidade | F24: 0.0005 | G24: =ROUND(F24*SUMIF(PFP!$B$13:$B$27,"MO1",PFP!$J$13:$J$27),2) -> 0
B25: B6 | C25: Faltas Justificadas | F25: 0.0056 | G25: =ROUND(F25*SUMIF(PFP!$B$13:$B$27,"MO1",PFP!$J$13:$J$27),2) -> 0
B26: B8 | C26: Auxílio Acidente de Trabalho | F26: 0.0008 | G26: =ROUND(F26*SUMIF(PFP!$B$13:$B$27,"MO1",PFP!$J$13:$J$27),2) -> 0
B27: B9 | C27: Férias Gozadas | F27: 0.084 | G27: =ROUND(F27*SUMIF(PFP!$B$13:$B$27,"MO1",PFP!$J$13:$J$27),2) -> 0
B28: B10 | C28: Salário Maternidade | F28: 0.0003 | G28: =ROUND(F28*SUMIF(PFP!$B$13:$B$27,"MO1",PFP!$J$13:$J$27),2) -> 0
B29: C | C29: ENCARGOS SOCIAIS QUE NÃO RECEBEM INCIDÊNCIA DE "A" | F29: =ROUND(SUM(F30:F34),4) -> 0.0834 | G29: =ROUND(F29*SUMIF(PFP!$B$13:$B$27,"MO1",PFP!$J$13:$J$27),2) -> 0
B30: C1 | C30: Aviso Prévio Indenizado | F30: 0.0362 | G30: =ROUND(F30*SUMIF(PFP!$B$13:$B$27,"MO1",PFP!$J$13:$J$27),2) -> 0
B31: C2 | C31: Aviso Prévio Trabalhado | F31: 0.0009 | G31: =ROUND(F31*SUMIF(PFP!$B$13:$B$27,"MO1",PFP!$J$13:$J$27),2) -> 0
B32: C3 | C32: Férias Indenizadas | F32: 0.0224 | G32: =ROUND(F32*SUMIF(PFP!$B$13:$B$27,"MO1",PFP!$J$13:$J$27),2) -> 0
B33: C4 | C33: Depósito Rescisão Sem Justa Causa | F33: 0.0209 | G33: =ROUND(F33*SUMIF(PFP!$B$13:$B$27,"MO1",PFP!$J$13:$J$27),2) -> 0
B34: C5 | C34: Indenização Adicional | F34: 0.003 | G34: =ROUND(F34*SUMIF(PFP!$B$13:$B$27,"MO1",PFP!$J$13:$J$27),2) -> 0
B35: D | C35: REINCIDÊNCIAS | F35: =ROUND(SUM(F36:F37),4) -> 0.0698 | G35: =ROUND(F35*SUMIF(PFP!$B$13:$B$27,"MO1",PFP!$J$13:$J$27),2) -> 0
B36: D1 | C36: Reincidência de "A" sobre "B" | F36: =ROUND(F11*F21,4) -> 0.0666 | G36: =ROUND(F36*SUMIF(PFP!$B$13:$B$27,"MO1",PFP!$J$13:$J$27),2) -> 0
B37: D2 | C37: Reincidência de "A" sobre Aviso Prévio Trabalhado e reincidência do FGTS sobre Aviso Prévio Indenizado | F37: =ROUND((F31*F11)+(F30*F19),4) -> 0.0032 | G37: =ROUND(F37*SUMIF(PFP!$B$13:$B$27,"MO1",PFP!$J$13:$J$27),2) -> 0
B38: K1 | C38: ENCARGOS SOCIAIS | F38: =ROUND(F11+F21+F29+F35,4) -> 0.7023 | G38: =ROUND(F38*SUMIF(PFP!$B$13:$B$27,"MO1",PFP!$J$13:$J$27),2) -> 0
B39: Ka | C39: TAXA DE RESSARCIMENTO DE DESPESAS E ENCARGOS SOBRE MO1 | F39: =ROUND((1+F38+PFP2.3_FatorKc!E16)*(1+PFP2.3_FatorKc!E15)*(1+PFP2.3_FatorKc!E11),4) -> 2.326
B40: OBSERVAÇÃO:
B41: 1 - DISCRIMINAR OS ENCARGOS SOCIAIS COM SEUS RESPECTIVOS PERCENTUAS TOTALIZANDO OS MESMOS.
B42: 2 - APLICAR O % TOTAL P/ CALCULAR OS E. SOCIAIS INCIDENTES NA MÃO-DE-OBRA COM VÍNCULO PERMANENTE
B43: Ka - Taxa de Ressarcimento de Despesas e Encargos sobre a Mão de Obra COM VINCULO (incide apenas no Insumo Codigo M.O.)
B44: Ka = (1 + K1 + K2) x (1 + K3) x (1 + K4)

Sheet PFP2.2_FatorKb
A4: DETALHAMENTO DOS ENCARGOS SOCIAIS: Kb | F4: CODIGO:
F5: PFP-2.2
A6: NOME DA CONSULTORA:
A8: PROJETO: | C8: CONTRATANTE: | F8: BASE:
A9: =PFP!A11 -> CONTRATAÇÃO DE EMPRESA PARA ESTUDO E ELABORAÇÃO DE PROJETO BÁSICO DE CONTENÇÃO E ESTABILIDADE DO DIQUE DE PROTEÇÃO NO PERÍMETRO IRRIGADO ITIÚBA | C9: =PFP!F11 -> CODEVASF 5ªSR
A10: Cod | B10: DESCRIÇÃO | E10: % | F10: R$
A11: A | B11: ENCARGOS SOCIAIS BÁSICOS | E11: =ROUND(SUM(E12:E20),4) -> 0.2 | F11: =ROUND(E11*SUMIF(PFP!$B$13:$B$27,"MO2",PFP!$J$13:$J$27),2) -> 0
A12: A1 | B12: INSS | E12: 0 | F12: =ROUND(E12*SUMIF(PFP!$B$13:$B$27,"MO2",PFP!$J$13:$J$27),2) -> 0
A13: A2 | B13: SESI | E13: 0 | F13: =ROUND(E13*SUMIF(PFP!$B$13:$B$27,"MO2",PFP!$J$13:$J$27),2) -> 0
A14: A3 | B14: SENAI | E14: 0 | F14: =ROUND(E14*SUMIF(PFP!$B$13:$B$27,"MO2",PFP!$J$13:$J$27),2) -> 0
A15: A4 | B15: INCRA | E15: 0 | F15: =ROUND(E15*SUMIF(PFP!$B$13:$B$27,"MO2",PFP!$J$13:$J$27),2) -> 0
A16: A5 | B16: SEBRAE | E16: 0 | F16: =ROUND(E16*SUMIF(PFP!$B$13:$B$27,"MO2",PFP!$J$13:$J$27),2) -> 0
A17: A6 | B17: Salário Educação | E17: 0 | F17: =ROUND(E17*SUMIF(PFP!$B$13:$B$27,"MO2",PFP!$J$13:$J$27),2) -> 0
A18: A7 | B18: Seguro Contra Acidentes de Trabalho | E18: 0 | F18: =ROUND(E18*SUMIF(PFP!$B$13:$B$27,"MO2",PFP!$J$13:$J$27),2) -> 0
A19: A8 | B19: FGTS | E19: 0.2 | F19: =ROUND(E19*SUMIF(PFP!$B$13:$B$27,"MO2",PFP!$J$13:$J$27),2) -> 0
A20: A9 | B20: SECONCI | E20: 0 | F20: =ROUND(E20*SUMIF(PFP!$B$13:$B$27,"MO2",PFP!$J$13:$J$27),2) -> 0
A21: B | B21: ENCARGOS SOCIAIS QUE RECEBEM INCIDÊNCIA DE "A" | E21: =ROUND(SUM(E22:E28),4) -> 0 | F21: =ROUND(E21*SUMIF(PFP!$B$13:$B$27,"MO2",PFP!$J$13:$J$27),2) -> 0
A22: B3 | B22: Auxílio Enfermidade | E22: 0 | F22: =ROUND(E22*SUMIF(PFP!$B$13:$B$27,"MO2",PFP!$J$13:$J$27),2) -> 0
A23: B4 | B23: 13º Salário | E23: 0 | F23: =ROUND(E23*SUMIF(PFP!$B$13:$B$27,"MO2",PFP!$J$13:$J$27),2) -> 0
A24: B5 | B24: Licença Paternidade | E24: 0 | F24: =ROUND(E24*SUMIF(PFP!$B$13:$B$27,"MO2",PFP!$J$13:$J$27),2) -> 0
A25: B6 | B25: Faltas Justificadas | E25: 0 | F25: =ROUND(E25*SUMIF(PFP!$B$13:$B$27,"MO2",PFP!$J$13:$J$27),2) -> 0
A26: B8 | B26: Auxílio Acidente de Trabalho | E26: 0 | F26: =ROUND(E26*SUMIF(PFP!$B$13:$B$27,"MO2",PFP!$J$13:$J$27),2) -> 0
A27: B9 | B27: Férias Gozadas | E27: 0 | F27: =ROUND(E27*SUMIF(PFP!$B$13:$B$27,"MO2",PFP!$J$13:$J$27),2) -> 0
A28: B10 | B28: Salário Maternidade | E28: 0 | F28: =ROUND(E28*SUMIF(PFP!$B$13:$B$27,"MO2",PFP!$J$13:$J$27),2) -> 0
A29: C | B29: ENCARGOS SOCIAIS QUE NÃO RECEBEM INCIDÊNCIA DE "A" | E29: =ROUND(SUM(E30:E34),4) -> 0 | F29: =ROUND(E29*SUMIF(PFP!$B$13:$B$27,"MO2",PFP!$J$13:$J$27),2) -> 0
A30: C1 | B30: Aviso Prévio Indenizado | E30: 0 | F30: =ROUND(E30*SUMIF(PFP!$B$13:$B$27,"MO2",PFP!$J$13:$J$27),2) -> 0
A31: C2 | B31: Aviso Prévio Trabalhado | E31: 0 | F31: =ROUND(E31*SUMIF(PFP!$B$13:$B$27,"MO2",PFP!$J$13:$J$27),2) -> 0
A32: C3 | B32: Férias Indenizadas | E32: 0 | F32: =ROUND(E32*SUMIF(PFP!$B$13:$B$27,"MO2",PFP!$J$13:$J$27),2) -> 0
A33: C4 | B33: Depósito Rescisão Sem Justa Causa | E33: 0 | F33: =ROUND(E33*SUMIF(PFP!$B$13:$B$27,"MO2",PFP!$J$13:$J$27),2) -> 0
A34: C5 | B34: Indenização Adicional | E34: 0 | F34: =ROUND(E34*SUMIF(PFP!$B$13:$B$27,"MO2",PFP!$J$13:$J$27),2) -> 0
A35: D | B35: REINCIDÊNCIAS | E35: =ROUND(SUM(E36:E37),4) -> 0 | F35: =ROUND(E35*SUMIF(PFP!$B$13:$B$27,"MO2",PFP!$J$13:$J$27),2) -> 0
A36: D1 | B36: Reincidência de "A" sobre "B" | E36: =ROUND(E11*E21,4) -> 0 | F36: =ROUND(E36*SUMIF(PFP!$B$13:$B$27,"MO2",PFP!$J$13:$J$27),2) -> 0
A37: D2 | B37: Reincidência de "A" sobre Aviso Prévio Trabalhado e reincidência do FGTS sobre Aviso Prévio Indenizado | E37: =ROUND(E11*E31,4)+ROUND(E30*E14,4) -> 0 | F37: =ROUND(E37*SUMIF(PFP!$B$13:$B$27,"MO2",PFP!$J$13:$J$27),2) -> 0
A38: K1 | B38: ENCARGOS SOCIAIS | E38: =ROUND(E11+E21+E29+E35,4) -> 0.2 | F38: =ROUND(E38*SUMIF(PFP!$B$13:$B$27,"MO2",PFP!$J$13:$J$27),2) -> 0
A39: Kb | B39: TAXA DE RESSARCIMENTO DE DESPESAS E ENCARGOS SOBRE MO2 | E39: =ROUND((1+E38+PFP2.3_FatorKc!E16)*(1+PFP2.3_FatorKc!E15)*(1+PFP2.3_FatorKc!E11),4) -> 1.6953
A40: OBSERVAÇÃO:
A41: 1 - DISCRIMINAR OS ENCARGOS SOCIAIS COM SEUS RESPECTIVOS PERCENTUAS TOTALIZANDO OS MESMOS.
A42: 2 - APLICAR O % TOTAL P/ CALCULAR OS E. SOCIAIS INCIDENTES NA MÃO-DE-OBRA SEM VÍNCULO PERMANENTE
A43: Kb - Taxa de Ressarcimento de Despesas e Encargos sobre a Mão de Obra SEM VINCULO (incide apenas no Insumo Codigo M.O.)
A44: Kb = (1 + K1 + K2) x (1 + K3) x (1 + K4)

Sheet PFP2.3_FatorKc
A4: DESPESAS FISCAIS E CUSTOS DIVERSOS: Kc | F4: CODIGO:
F5: PFP-3
A6: NOME DA CONSULTORA:
A8: PROJETO: | C8: CONTRATANTE: | F8: BASE:
A9: =PFP!A11 -> CONTRATAÇÃO DE EMPRESA PARA ESTUDO E ELABORAÇÃO DE PROJETO BÁSICO DE CONTENÇÃO E ESTABILIDADE DO DIQUE DE PROTEÇÃO NO PERÍMETRO IRRIGADO ITIÚBA | C9: =PFP!F11 -> CODEVASF 5ªSR
A10: Cod | B10: DESCRIÇÃO1 | D10: % preço2 | E10: % custo4 | F10: R$
A11: K4 | B11: TAXAS E IMPOSTOS | D11: =ROUND(D12+D13+D14,4) -> 0.124 | E11: =ROUND(E12+E13+E14,4) -> 0.1416 | F11: =E11*SUM(SUMIF(PFP!$B$13:$B$27,"MO1",PFP!$J$13:$J$27)*(1+PFP2.1_FatorKa!$F$38)+SUMIF(PFP!$B$13:$B$27,"MO2",PFP!$J$13:$J$27)*(1+PFP2.2_FatorKb!$E$38)+SUMIF(PFP!$B$13:$B$27,"<>MO*",PFP!$J$13:$J$27)+$F$16+$F$15) -> 10028.71663
A12: K4.1 | B12: ISS | D12: 0.05 | E12: =ROUND((1/(1-$D$11))*D12,4) -> 0.0571 | F12: =E12*SUM(SUMIF(PFP!$B$13:$B$27,"MO1",PFP!$J$13:$J$27)*(1+PFP2.1_FatorKa!$F$38)+SUMIF(PFP!$B$13:$B$27,"MO2",PFP!$J$13:$J$27)*(1+PFP2.2_FatorKb!$E$38)+SUMIF(PFP!$B$13:$B$27,"<>MO*",PFP!$J$13:$J$27)+$F$16+$F$15) -> 4044.065817
A13: K4.2 | B13: PIS3 - aliquota efetiva com percentual-desconto | D13: =ROUND(1.65%*0.8,4) -> 0.0132 | E13: =ROUND((1/(1-$D$11))*D13,4) -> 0.0151 | F13: =E13*SUM(SUMIF(PFP!$B$13:$B$27,"MO1",PFP!$J$13:$J$27)*(1+PFP2.1_FatorKa!$F$38)+SUMIF(PFP!$B$13:$B$27,"MO2",PFP!$J$13:$J$27)*(1+PFP2.2_FatorKb!$E$38)+SUMIF(PFP!$B$13:$B$27,"<>MO*",PFP!$J$13:$J$27)+$F$16+$F$15) -> 1069.446477
A14: K4.3 | B14: COFINS3 - aliquota efetiva com percentual-desconto | D14: =ROUND(7.6%*0.8,4) -> 0.0608 | E14: =ROUND((1/(1-$D$11))*D14,4) -> 0.0694 | F14: =E14*SUM(SUMIF(PFP!$B$13:$B$27,"MO1",PFP!$J$13:$J$27)*(1+PFP2.1_FatorKa!$F$38)+SUMIF(PFP!$B$13:$B$27,"MO2",PFP!$J$13:$J$27)*(1+PFP2.2_FatorKb!$E$38)+SUMIF(PFP!$B$13:$B$27,"<>MO*",PFP!$J$13:$J$27)+$F$16+$F$15) -> 4915.204338
A15: K3 | B15: REMUNERAÇÃO DA EMPRESA (LUCRO) | E15: 0.1 | F15: =E15*SUM(SUMIF(PFP!$B$13:$B$27,"MO1",PFP!$J$13:$J$27)*(1+PFP2.1_FatorKa!$F$38)+SUMIF(PFP!$B$13:$B$27,"MO2",PFP!$J$13:$J$27)*(1+PFP2.2_FatorKb!$E$38)+SUMIF(PFP!$B$13:$B$27,"<>MO*",PFP!$J$13:$J$27)+$F$16) -> 6438.57
A16: K2 | B16: CUSTOS DA ADMINISTRAÇÃO CENTRAL | E16: =ROUND(SUM(E17:E19),4) -> 0.15 | F16: =ROUND(E16*SUMIF(PFP!$B$13:$B$27,"MO*",PFP!$J$13:$J$27),2) -> 0
A17: K2.1 | B17: Custos da administração central da empresa (diretoria, pessoal técnico de apoio e pessoal administrativo não diretamente vinculado à prestação dos serviços) | E17: 0.1 | F17: =ROUND(E17*SUMIF(PFP!$B$13:$B$27,"MO*",PFP!$J$13:$J$27),2) -> 0
A18: K2.2 | B18: Outras despesas que afetam o custo de produção como treinamento, biblioteca, programa de qualidade, programa de benefícios, auditoria interna e externa | E18: 0.03 | F18: =ROUND(E18*SUMIF(PFP!$B$13:$B$27,"MO*",PFP!$J$13:$J$27),2) -> 0
A19: K2.3 | B19: Despesas fixas e variaveis com patrimônio, aluguéis, comunicação, manutenção e transporte não diretamente relacionados com o custo direto dos serviços | E19: 0.02 | F19: =ROUND(E19*SUMIF(PFP!$B$13:$B$27,"MO*",PFP!$J$13:$J$27),2) -> 0
A20: Kc | B20: TAXA RESSARCIMENTO DE DESPESAS SOBRE CUSTOS DIVERSOS | E20: =ROUND((1+E15)*(1+E11),4) -> 1.2558
A21: NOME DO INFORMANTE: | E21: QUALIFICAÇÃO:
A23: ASSINATURA: | E23: DATA:
A25: Observação:
A26: 1 - RELACIONAR OS CUSTOS DE ADMINISTRAÇÃO COM RESPECTIVOS PERCENTUAIS INCIDENTES NA MÃO -DE-OBRA
A27: 1 - DISCRIMINAR OS TRIBUTOS QUE INCIDEM SOBRE OS CUSTOS DA PRESTAÇÃO DOS SERVIÇOS
A28: 2 - K4 = INDICAR % DE CADA TRIBUTO E A SOMA DOS MESMOS (ex: ISS 5% + PIS 1,65% + COFINS 7,60% = 14,25%)
A29: 3 - PIS e COFINS, Regime de Incidencia Acumulativa (0,65% e 3,00% - sem percentual de desconto) ou em Regime de Incidencia Não Acumulativa (1,65% e 7,60% - aplicável percentual de desconto) de acordo com a forma de apuração do lucro no IRPJ. APRESENTAR COMPROVANTES de aproveitamento de créditos tributários dos últimos 12 meses em caso de aplicação de "percentual de desconto".
A30: 4 - AS DESPESAS FISCAIS (K4) INCIDEM SOBRE O TOTAL DA FATURA E NÃO SOBRE OS CUSTOS INCORRIDOS,
A31: DEVENDO SER CALCULADO O K4' APLICANDO-SE A SEGUINTE FÓRMULA:
A32: K4' = { [ 1 / ( 1 - K4) ] - 1 } x 100
A33: =CONCATENATE(" K4' = { [ 1 / ( 1 - ",D11," ) ] - 1 } x 100") -> K4' = { [ 1 / ( 1 - 0,124 ) ] - 1 } x 100
A34: Kc - Taxa de Ressarcimento de Despesas sobre Custos Diversos (incide sobre os Insumos Codigo DP e EM)
A35: Kc = (1 + K3) x (1 + K4)
A36: K2 - Incide sobre o Custo Total (CT) da Mão de Obra (MO* = MO1 + MO2)
A37: K3 - Incide sobre o Custo Total (CT) Mão de Obra com encargos (MO1 x Ka ou MO2 x Kb), demais Custos (DP e EM), e Custos da Administração Central (K2)
A38: K4 - Incide sobre o Custo Total (CT) Mão de Obra com encargos (MO1 x Ka ou MO2 x Kb), demais Custos (DP e EM), e Custos da Administração Central (K2) e Lucro (K3)

Sheet CRO-1 - INSUMO ETAPA.PRODUTO
A6: INSUMOS POR ETAPA/PRODUTO | M6: CODIGO:
M7: CRO-1
A8: Cod. | B8: Categoria / Insumo | C8: Uni | D8: Qde | E8: CUD | F8: PU | G8: FatorK | H8: ='CRO2_Crono Simplificado'!A4 -> E1 | I8: ='CRO2_Crono Simplificado'!A5 -> E2 | J8: ='CRO2_Crono Simplificado'!A6 -> E3 | K8: ='CRO2_Crono Simplificado'!A7 -> E4 | L8: ='CRO2_Crono Simplificado'!A8 -> E5 | M8: ='CRO2_Crono Simplificado'!A11 -> 0 | N8: ='CRO2_Crono Simplificado'!A12 -> 0 | O8: ='CRO2_Crono Simplificado'!A13 -> 0
